bitfinex-derivatives/quotes_ETHF0:USTF0_20241020
["timestamp","ask_amount","ask_price","bid_price","bid_amount"]
[1729468107246,4.75886,2744.2,2743.9,0.36449]
[1729468107247,4.3944,2744.2,2743.9,0.36449]
[1729468107446,4.75886,2744.2,2743.9,0.36449]
[1729468107742,4.75886,2744.2,2743.5,0.407]
[1729468107743,4.3944,2744.2,2744.0,0.36448]
[1729468107946,3.2078,2744.6,2744.4,0.36442]
[1729468108241,3.2078,2744.6,2744.0,3.2078]
[1729468108242,0.4009,2744.8,2744.5,0.36441]
[1729468108640,0.4009,2744.8,2744.6,0.36439]
[1729468109344,0.4009,2744.8,2744.5,0.36441]
[1729468109742,0.76528,2744.8,2744.4,0.36442]
[1729468110339,0.4009,2744.8,2744.1,1.2006]
[1729468110936,0.4009,2744.8,2744.6,0.3644]
[1729468111537,3.6094,2745.0,2744.1,1.2006]
[1729468111735,3.2078,2745.0,2744.3,3.2078]
[1729468112144,3.2078,2745.0,2744.9,0.36436]
[1729468113544,4.9427,2745.4,2745.3,0.36431]
[1729468113545,3.2078,2745.4,2745.3,0.36431]
[1729468113752,3.2078,2745.4,2745.0,0.7683]
[1729468113943,3.5721,2745.4,2745.1,0.36433]
[1729468114145,3.2078,2745.4,2745.1,0.36433]
[1729468114343,3.2078,2745.4,2744.6,4.16291904]
[1729468114344,0.36431,2745.3,2744.9,0.36436]
[1729468114554,0.36431,2745.3,2745.0,0.36435]
[1729468115262,0.36431,2745.3,2744.9,0.36435]
[1729468115946,3.5721,2745.4,2745.0,0.36434]
[1729468116158,0.36432,2745.3,2744.9,0.36435]
[1729468116655,0.3874,2745.2,2744.9,0.36435]
[1729468116856,0.3775,2745.1,2744.9,0.36435]
[1729468117159,0.7645,2745.1,2745.0,0.36435]
[1729468117450,0.7645,2745.1,2744.6,0.7607]
[1729468117653,0.7645,2745.1,2745.0,0.36435]
[1729468117856,0.7645,2745.1,2744.6,0.7607]
[1729468118155,0.7645,2745.1,2744.9,0.36436]
[1729468118352,0.7645,2745.1,2744.7,0.36439]
[1729468118541,0.7645,2745.1,2745.0,0.36435]
[1729468118743,0.7645,2745.1,2744.9,0.36435]
[1729468120047,0.7645,2745.1,2744.6,0.7607]
[1729468120355,0.7645,2745.1,2744.9,0.36436]
[1729468120557,0.7645,2745.1,2745.0,0.36435]
[1729468121053,0.7645,2745.1,2744.9,0.36436]
[1729468121256,0.7645,2745.1,2744.8,0.36437]
[1729468121444,0.7645,2745.1,2744.9,0.36435]
[1729468121650,0.7645,2745.1,2744.7,3.2078]
[1729468121942,0.7645,2745.1,2744.9,0.36436]
[1729468122550,3.9723,2745.1,2744.6,0.7607]
[1729468122748,0.36435,2745.0,2744.6,0.7607]
[1729468122955,0.36435,2745.0,2744.7,0.36438]
[1729468123463,3.9723,2745.1,2744.6,0.7607]
[1729468123751,4.33665,2745.1,2744.7,0.36438]
[1729468124053,4.33665,2745.1,2744.6,0.7607]
[1729468124251,4.33665,2745.1,2744.8,0.36437]
[1729468124443,0.36436,2745.0,2744.6,1.12509]
[1729468124651,3.9723,2745.1,2744.7,0.36439]
[1729468124851,3.9723,2745.1,2744.6,0.7607]
[1729468125046,0.36435,2745.0,2744.7,0.36438]
[1729468125853,0.36435,2745.0,2743.5,0.95304402]
[1729468125854,3.2078,2744.8,2743.5,0.95304402]
[1729468126053,3.2078,2744.8,2742.7,4.63767656]
[1729468126054,3.2078,2743.7,2742.7,4.63767656]
[1729468126251,3.2078,2743.7,2742.8,0.11403641]
[1729468126252,3.2078,2743.4,2742.8,0.11403641]
[1729468126558,3.2078,2743.4,2743.2,0.36459]
[1729468126854,3.2078,2743.4,2742.9,0.36462]
[1729468127061,3.2078,2743.4,2743.0,0.11403554]
[1729468127259,3.2078,2743.4,2742.5,0.24598287]
[1729468127452,3.2078,2743.4,2743.1,0.36459]
[1729468127653,3.2078,2743.4,2742.5,3.2078]
[1729468127852,3.2078,2743.4,2742.6,0.22806798]
[1729468128067,0.3802,2743.6,2743.1,0.3646]
[1729468128353,3.2078,2743.4,2743.0,0.36461]
[1729468128553,3.2078,2743.4,2742.5,3.2078]
[1729468128554,3.2078,2743.4,2742.9,0.36463]
[1729468128860,3.2078,2743.4,2743.0,0.36461]
[1729468129563,3.2078,2743.4,2742.5,3.2078]
[1729468129757,3.2078,2743.4,2743.1,0.3646]
[1729468130560,3.2078,2743.4,2742.5,3.2078]
[1729468130763,3.2078,2743.4,2743.2,0.36458]
[1729468131148,3.2078,2743.4,2742.6,2.13688]
[1729468131149,3.2078,2743.7,2743.3,3.6456]
[1729468131354,3.2078,2743.7,2743.5,0.36454]
[1729468131854,3.2078,2743.7,2743.4,0.8078]
[1729468132250,3.2078,2743.7,2742.7,4.63767656]
[1729468132251,0.36454,2743.6,2742.8,0.36464]
[1729468132460,3.2078,2743.4,2743.2,0.36458]
[1729468132960,3.2078,2743.4,2743.3,0.3894]
[1729468134160,3.2078,2743.4,2743.3,0.75397]
[1729468134473,3.2078,2743.4,2743.3,0.3894]
[1729468134764,3.2078,2743.4,2743.3,0.75397]
[1729468135551,0.379,2743.6,2743.3,0.75397]
[1729468135552,3.57231,2743.8,2743.5,0.36455]
[1729468135753,3.2078,2743.8,2743.3,0.3894]
[1729468135961,3.2078,2743.8,2743.3,0.75397]
[1729468135962,0.36454,2743.6,2743.3,0.75397]
[1729468136169,3.57231,2743.8,2743.5,0.36454]
[1729468136652,3.2078,2743.8,2743.5,0.36454]
[1729468136856,3.2078,2743.8,2743.4,0.3819]
[1729468137056,3.2078,2743.8,2743.6,0.36453]
[1729468137866,3.2078,2743.8,2743.4,0.3819]
[1729468138164,3.2078,2743.8,2743.5,0.36454]
[1729468138575,3.2078,2743.8,2743.4,0.3819]
[1729468138873,3.2078,2743.8,2743.6,0.36452]
[1729468139269,3.2078,2743.8,2743.5,0.36454]
[1729468139565,3.2078,2743.8,2743.4,0.3819]
[1729468139774,3.2078,2743.8,2743.6,0.36453]
[1729468139964,0.3912,2743.9,2743.6,0.36453]
[1729468140163,0.3805,2744.2,2743.7,0.36452]
[1729468140164,3.2078,2743.8,2743.7,0.36452]
[1729468141465,0.3805,2744.2,2743.7,3.6448]
[1729468141670,0.36444,2744.4,2744.1,0.36446]
[1729468141862,0.76014,2744.4,2744.1,0.36446]
[1729468142064,0.36446,2744.2,2743.9,0.36449]
[1729468142769,0.3957,2744.4,2743.8,0.3859]
[1729468142967,0.3957,2744.4,2744.1,0.36446]
[1729468142968,0.76013,2744.4,2744.1,0.36446]
[1729468143170,0.3957,2744.4,2743.9,0.36449]
[1729468143364,0.3957,2744.4,2744.1,0.36446]
[1729468143567,0.76013,2744.4,2744.1,0.36446]
[1729468143770,0.36449,2744.0,2743.8,0.3859]
[1729468143964,0.36449,2744.0,2743.4,3.44994953]
[1729468143965,3.2078,2743.9,2743.3,0.7733]
[1729468144169,0.4088,2743.8,2743.7,0.36452]
[1729468144372,0.4088,2743.8,2743.6,0.36453]
[1729468144880,0.4088,2743.8,2743.7,0.36452]
[1729468145182,0.4088,2743.8,2743.6,0.36453]
[1729468145774,0.4088,2743.8,2743.7,0.36452]
[1729468146175,3.2078,2744.3,2744.2,0.36445]
[1729468146369,3.57225,2744.3,2743.8,0.8222]
[1729468146578,3.2078,2744.3,2744.1,0.36446]
[1729468146778,3.2078,2744.3,2743.8,0.8222]
[1729468147078,0.36449,2743.9,2743.8,0.4147]
[1729468147273,0.3645,2743.9,2743.6,0.36453]
[1729468147473,0.3993,2743.8,2743.4,1.05506053]
[1729468147683,0.3993,2743.8,2743.7,0.36452]
[1729468147972,0.3993,2743.8,2743.4,0.8222]
[1729468148177,0.3993,2743.8,2743.6,0.36453]
[1729468148369,0.3993,2743.8,2743.4,0.8222]
[1729468148775,0.3993,2743.8,2743.7,0.36452]
[1729468148981,0.3993,2743.8,2743.4,0.8222]
[1729468149472,0.3993,2743.8,2743.6,0.36453]
[1729468149671,0.3993,2743.8,2743.5,0.36454]
[1729468149977,0.76382,2743.8,2743.5,0.36454]
[1729468150172,0.76382,2743.8,2743.4,0.8222]
[1729468150173,0.3993,2743.8,2743.4,0.4147]
[1729468150372,3.2078,2743.6,2743.4,0.77925]
[1729468150772,3.57234,2743.6,2743.4,0.4147]
[1729468150973,3.2078,2743.6,2743.5,0.36455]
[1729468151174,3.2078,2743.6,2743.4,0.77925]
[1729468151375,3.2078,2743.6,2743.5,0.36455]
[1729468153082,3.57234,2743.6,2743.4,0.77926]
[1729468153377,3.57234,2743.6,2743.4,0.4147]
[1729468153579,3.57234,2743.6,2742.5,4.1195]
[1729468153580,3.2078,2743.6,2742.5,4.1195]
[1729468153776,0.36455,2743.5,2743.2,0.36458]
[1729468153969,0.36456,2743.4,2743.0,0.4051]
[1729468154171,0.4027,2743.3,2743.1,0.36459]
[1729468154872,0.4027,2743.3,2743.2,0.36459]
[1729468155073,0.4027,2743.3,2743.1,0.36459]
[1729468155873,0.4027,2743.3,2743.2,0.36459]
[1729468156977,0.4027,2743.3,2743.0,0.4051]
[1729468157285,0.4027,2743.3,2743.1,0.36459]
[1729468158182,0.4027,2743.3,2743.0,0.63887992]
[1729468158380,0.4027,2743.3,2743.2,0.36459]
[1729468163582,3.2078,2743.6,2743.0,1.31664]
[1729468163783,3.2078,2743.6,2743.5,0.36455]
[1729468166786,3.2078,2743.8,2743.6,0.36452]
[1729468166987,3.2078,2743.8,2743.4,0.3868]
[1729468166988,3.2078,2743.8,2743.7,0.36452]
[1729468167292,3.2078,2743.8,2743.4,0.3868]
[1729468167585,3.2078,2743.8,2743.7,0.36452]
[1729468172893,1.1908,2744.0,2743.7,0.11401141]
[1729468173093,1.1908,2744.0,2743.4,0.3868]
[1729468173094,1.1908,2744.0,2743.9,0.36449]
[1729468178100,4.3986,2744.0,2743.9,0.36449]
[1729468179691,4.0155,2744.0,2743.9,0.36449]
[1729468180290,4.0155,2744.0,2743.9,0.47849385]
[1729468180896,4.0155,2744.0,2743.9,0.36449]
[1729468185309,0.8077,2744.0,2743.9,0.36449]
[1729468185501,0.8077,2744.0,2743.6,0.36453]
[1729468185502,0.3645,2743.9,2743.6,0.36453]
[1729468185698,3.2078,2743.8,2743.7,0.36451]
[1729468186702,3.2078,2743.8,2743.7,0.47852421]
[1729468186998,3.2078,2743.8,2743.7,0.59253451]
[1729468188002,3.2078,2743.8,2743.7,0.5925251]
[1729468191410,0.4094,2744.0,2743.9,0.36449]
[1729468191600,3.2078,2744.2,2744.1,0.36447]
[1729468191804,3.2078,2744.2,2744.1,0.47847755]
[1729468192002,3.2078,2744.2,2744.1,0.36447]
[1729468192511,3.2078,2744.2,2743.8,0.4032]
[1729468192702,0.8069,2744.1,2743.9,0.22799645]
[1729468192899,1.1919,2744.1,2744.0,0.47847761]
[1729468193909,1.55637,2744.1,2744.0,0.11399761]
[1729468194109,1.55637,2744.1,2743.8,0.7677]
[1729468194313,1.1919,2744.1,2743.9,0.47849688]
[1729468194509,1.1919,2744.1,2744.0,0.36448]
[1729468195704,1.1919,2744.1,2744.0,0.47847982]
[1729468195898,1.1919,2744.1,2744.0,0.36448]
[1729468196105,1.1919,2744.1,2744.0,0.47847974]
[1729468196405,1.1919,2744.1,2744.0,0.36448]
[1729468196596,1.1919,2744.1,2743.8,0.4032]
[1729468196801,1.1919,2744.1,2743.9,0.59247984]
[1729468196997,1.1919,2744.1,2743.9,0.36448]
[1729468197211,1.1919,2744.1,2743.8,0.4032]
[1729468197408,1.1919,2744.1,2744.0,0.36448]
[1729468198010,0.36449,2744.0,2743.8,0.76771]
[1729468199601,1.1919,2744.1,2743.8,0.4032]
[1729468199802,0.3645,2743.9,2743.7,0.36452]
[1729468199999,0.36449,2744.0,2743.8,0.3645]
[1729468200214,1.1919,2744.1,2743.5,1.2066]
[1729468200215,3.5723,2743.9,2743.6,0.36452]
[1729468200411,0.36451,2743.8,2743.7,0.22802206]
[1729468200809,3.5723,2743.9,2743.7,0.22802206]
[1729468201003,3.5723,2743.9,2743.7,0.36452]
[1729468201209,3.2078,2743.9,2743.8,0.36451]
[1729468201405,3.2078,2743.9,2743.8,0.4785192]
[1729468201609,3.2078,2743.9,2743.8,0.47851886]
[1729468202307,1.1919,2744.1,2743.8,0.22801486]
[1729468202505,1.1919,2744.1,2743.4,0.23441584]
[1729468202506,3.2078,2744.0,2743.4,1.42987656]
[1729468202812,3.2078,2744.0,2743.5,0.22802966]
[1729468203116,0.3645,2743.9,2743.7,0.36451]
[1729468203306,0.3645,2743.9,2743.3,1.42987656]
[1729468203510,0.3645,2743.9,2743.7,0.36452]
[1729468203707,3.2078,2744.0,2743.7,0.36452]
[1729468203912,3.57229,2744.0,2743.7,0.36452]
[1729468204107,3.57229,2744.0,2743.8,0.3645]
[1729468204813,3.2078,2744.0,2743.8,0.3645]
[1729468205428,3.2078,2744.0,2743.9,0.47849686]
[1729468205713,3.2078,2744.0,2743.9,0.59250045]
[1729468206521,3.2078,2744.0,2743.9,0.22801045]
[1729468206711,3.2078,2744.0,2743.9,0.59250045]
[1729468207911,3.2078,2744.0,2743.9,0.36449]
[1729468208118,3.2078,2744.0,2743.9,0.59250002]
[1729468211315,3.2078,2744.0,2743.9,0.77490441]
[1729468211518,3.2078,2744.0,2743.9,0.59249797]
[1729468211823,3.2078,2744.0,2743.9,0.77490153]
[1729468212027,3.2078,2744.0,2743.9,0.59249576]
[1729468212725,3.2078,2744.0,2743.9,0.77490237]
[1729468213022,3.57228,2744.0,2743.9,0.22800576]
[1729468214020,3.2078,2744.0,2743.9,0.22800576]
[1729468214214,3.2078,2744.0,2743.9,0.59249576]
[1729468214816,3.2078,2744.0,2743.9,0.22800576]
[1729468215123,3.2078,2744.0,2743.9,0.36449]
[1729468215325,3.2078,2744.0,2743.9,0.59250272]
[1729468215616,3.57228,2744.0,2743.9,0.22801272]
[1729468215823,5.95623654,2744.0,2743.9,0.11400636]
[1729468216014,5.59175654,2744.0,2743.6,0.3911]
[1729468216213,0.36449,2743.9,2743.7,0.22802914]
[1729468216416,0.36449,2743.9,2743.8,0.22802914]
[1729468217422,5.59175654,2744.0,2743.8,0.22802914]
[1729468217623,5.95624654,2744.0,2743.7,0.36452]
[1729468217823,5.95624654,2744.0,2743.8,0.22803022]
[1729468218122,5.95624654,2744.0,2743.8,0.3645]
[1729468218324,5.95624654,2744.0,2743.6,0.3911]
[1729468218325,5.59175654,2744.0,2743.6,0.3911]
[1729468218528,5.59175654,2744.0,2743.7,0.59254778]
[1729468218727,5.95624654,2744.0,2743.8,0.22802778]
[1729468218922,5.95624654,2744.0,2743.7,0.36452]
[1729468219219,5.59175654,2744.0,2743.8,0.11401411]
[1729468219427,5.95624654,2744.0,2743.7,0.36452]
[1729468219628,5.95624654,2744.0,2743.8,0.59253646]
[1729468219837,5.95624654,2744.0,2743.8,0.36451]
[1729468221825,5.95624654,2744.0,2743.6,0.3911]
[1729468222017,5.95624654,2744.0,2743.7,0.47853341]
[1729468222018,0.3645,2743.9,2743.7,0.47853341]
[1729468222219,0.3645,2743.9,2743.8,0.22802709]
[1729468222418,0.3645,2743.9,2743.8,0.11401341]
[1729468222816,5.59175654,2744.0,2743.8,0.11401341]
[1729468223025,5.95624654,2744.0,2743.8,0.36451]
[1729468223425,2.74844654,2744.0,2743.8,0.36451]
[1729468223619,3.2078,2743.9,2743.8,0.36451]
[1729468223825,3.57229,2743.9,2743.8,0.11401359]
[1729468224033,3.2078,2743.9,2743.8,0.11401359]
[1729468224333,3.2078,2743.9,2743.8,0.22802715]
[1729468224529,3.2078,2743.9,2743.8,0.59253715]
[1729468224716,3.2078,2743.9,2743.8,0.11401359]
[1729468225531,3.57229,2743.9,2743.8,0.11401359]
[1729468225731,3.57229,2743.9,2743.2,3.44896164]
[1729468225732,9.23655654,2743.9,2743.3,1.42987656]
[1729468225928,0.7778,2744.1,2743.0,0.4013]
[1729468225929,3.57237,2743.4,2743.0,0.4013]
[1729468226128,0.4025,2743.3,2743.2,0.36459]
[1729468226333,0.4025,2743.3,2743.2,0.47862246]
[1729468226533,0.4025,2743.3,2743.2,0.59265367]
[1729468227133,0.4025,2743.3,2743.2,0.47862246]
[1729468228331,0.4025,2743.3,2743.2,0.36459]
[1729468228921,0.4025,2743.3,2743.2,0.47862018]
[1729468229331,0.4025,2743.3,2743.2,0.36459]
[1729468229838,3.2078,2743.5,2743.4,0.36456]
[1729468230334,3.2078,2743.5,2743.4,4.23739783]
[1729468230836,3.2078,2743.5,2743.4,4.41982209]
[1729468231236,0.3934,2743.9,2743.8,0.36451]
[1729468231737,3.2078,2744.2,2744.0,0.36447]
[1729468232132,3.2078,2744.2,2744.1,0.36447]
[1729468232924,0.7814,2744.4,2744.2,0.36445]
[1729468233124,0.7814,2744.4,2743.9,0.4035]
[1729468233330,0.36449,2744.0,2743.7,0.36451]
[1729468233538,4.0046,2743.9,2743.7,0.36451]
[1729468233735,4.0046,2743.9,2743.5,0.4101]
[1729468234034,0.36451,2743.8,2743.5,0.4101]
[1729468234233,0.36451,2743.8,2743.5,0.77465]
[1729468235333,0.36452,2743.7,2743.5,0.4101]
[1729468235637,4.3691,2743.9,2743.6,0.36453]
[1729468236239,0.36451,2743.8,2743.5,0.77464]
[1729468236739,0.3921,2743.7,2743.5,0.77464]
[1729468239841,0.75662,2743.7,2743.5,0.77464]
[1729468240434,0.75662,2743.7,2743.5,0.4101]
[1729468241637,0.75662,2743.7,2743.5,0.77465]
[1729468242037,0.3921,2743.7,2743.5,0.77465]
[1729468242845,0.3921,2743.7,2743.5,0.4101]
[1729468243147,0.3921,2743.7,2743.0,0.61598732]
[1729468243148,0.36454,2743.6,2743.3,0.36457]
[1729468243337,3.5935,2743.5,2743.3,0.36457]
[1729468245744,3.5935,2743.5,2743.4,0.36456]
[1729468246245,0.3857,2743.5,2743.4,0.36456]
[1729468248443,0.3857,2743.5,2743.2,0.4083]
[1729468248444,0.3921,2743.7,2743.6,0.36453]
[1729468249437,0.3921,2743.7,2743.5,0.36454]
[1729468249648,0.3921,2743.7,2743.6,0.36453]
[1729468250038,0.75662,2743.7,2743.2,0.4083]
[1729468250234,0.75662,2743.7,2743.4,0.36455]
[1729468250445,0.36454,2743.6,2743.4,0.36455]
[1729468250749,3.2078,2743.5,2743.4,0.36455]
[1729468251245,0.75663,2743.7,2743.4,0.36455]
[1729468251446,0.36454,2743.6,2743.3,0.36457]
[1729468251648,0.36454,2743.6,2743.4,0.36456]
[1729468251848,0.36454,2743.6,2743.3,0.36457]
[1729468252048,0.75663,2743.7,2743.4,0.36455]
[1729468252354,0.75663,2743.7,2743.5,0.36455]
[1729468252548,0.75663,2743.7,2743.4,0.36455]
[1729468252549,0.3921,2743.7,2743.4,0.36455]
[1729468252749,0.36454,2743.6,2743.4,0.36455]
[1729468252944,0.75663,2743.7,2743.4,0.36455]
[1729468253146,0.36454,2743.6,2743.4,0.36455]
[1729468253541,0.3921,2743.7,2743.4,0.36455]
[1729468253746,0.75663,2743.7,2743.4,0.36455]
[1729468254146,0.75663,2743.7,2743.5,0.36454]
[1729468254357,0.36454,2743.6,2743.4,0.36456]
[1729468254646,0.75663,2743.7,2743.4,0.36456]
[1729468254951,0.75663,2743.7,2743.5,0.36454]
[1729468255145,0.36454,2743.6,2743.4,0.36455]
[1729468255345,3.2078,2743.5,2743.2,0.4083]
[1729468255545,0.3964,2743.4,2743.3,0.47859822]
[1729468255741,0.3964,2743.4,2743.3,0.36457]
[1729468258151,0.8041,2743.4,2743.3,0.36457]
[1729468259654,6.34838654,2743.7,2743.6,0.36453]
[1729468259655,3.5999,2743.7,2743.6,0.36453]
[1729468260157,3.96443,2743.7,2743.5,0.36454]
[1729468260348,0.4052,2743.6,2743.5,0.36454]
[1729468264153,0.4052,2743.6,2743.5,0.47855993]
[1729468264564,5.59175654,2744.0,2743.8,0.36451]
[1729468264864,3.2078,2744.0,2743.9,0.89429294]
[1729468265056,3.2078,2744.0,2743.9,2.60203702]
[1729468265259,3.2078,2744.0,2743.9,6.24603702]
[1729468265764,3.2078,2744.0,2743.9,6.42842284]
[1729468265954,3.2078,2744.0,2743.9,6.42842384]
[1729468266155,3.2078,2744.0,2743.9,6.68397221]
[1729468266360,3.2078,2744.0,2743.9,6.24573643]
[1729468266562,3.2078,2744.0,2743.9,6.4281212]
[1729468267060,3.2078,2744.0,2743.9,6.24573643]
[1729468267265,3.2078,2744.0,2743.9,6.42783285]
[1729468267461,0.3644,2744.6,2743.9,6.42783285]
[1729468267462,3.2078,2744.6,2743.9,5.88096018]
[1729468267766,3.2078,2744.3,2744.0,0.11400294]
[1729468267961,0.7882,2744.2,2744.1,0.36446]
[1729468268158,1.2051,2744.2,2744.1,0.36446]
[1729468268668,3.2078,2744.3,2743.9,0.4158]
[1729468268855,3.2078,2744.3,2744.2,0.36445]
[1729468271855,3.57224,2744.3,2744.1,0.36446]
[1729468272761,3.2078,2744.3,2744.2,0.36445]
[1729468274365,3.57224,2744.3,2744.1,0.36446]
[1729468274567,3.2078,2744.3,2744.2,0.36445]
[1729468275867,3.33273977,2745.3,2744.2,0.36445]
[1729468275868,3.2078,2744.6,2744.5,0.36441]
[1729468276063,3.2078,2744.6,2744.3,0.7774]
[1729468276264,1.1726,2744.5,2744.0,0.4032]
[1729468276567,1.1726,2744.5,2744.1,0.3893]
[1729468276568,3.2078,2744.3,2744.1,0.3893]
[1729468277065,3.2078,2744.3,2744.2,0.36445]
[1729468277458,3.2078,2744.3,2744.1,0.75376]
[1729468277862,3.2078,2744.3,2744.2,0.36445]
[1729468278068,3.2078,2744.3,2743.7,0.4032]
[1729468278271,3.57225,2744.3,2743.8,0.50329666]
[1729468278471,3.2078,2744.3,2743.8,0.3893]
[1729468278771,0.36446,2744.2,2743.9,0.36448]
[1729468279271,1.1726,2744.5,2743.8,0.3893]
[1729468279272,3.57228,2744.0,2743.8,0.3893]
[1729468279475,0.7733,2743.9,2743.8,0.75381]
[1729468282165,0.7733,2743.9,2743.8,0.36451]
[1729468282562,0.4098,2744.1,2744.0,0.36448]
[1729468283369,3.98207,2744.1,2743.9,0.36449]
[1729468283574,3.6176,2744.1,2743.8,0.36451]
[1729468283772,3.6176,2744.1,2743.9,0.36448]
[1729468284269,3.6176,2744.1,2743.7,0.3794]
[1729468284468,3.6176,2744.1,2744.0,0.36448]
[1729468285274,4.0093,2744.4,2744.3,0.36444]
[1729468285664,4.3984,2744.4,2744.3,0.36444]
[1729468285865,4.3984,2744.4,2744.2,0.36445]
[1729468286664,4.76283,2744.4,2744.2,0.36445]
[1729468288367,1.55503,2744.4,2744.2,0.36445]
[1729468288567,4.3984,2744.4,2743.7,1.52547875]
[1729468288774,4.3984,2744.4,2744.3,0.36444]
[1729468289178,4.3984,2744.4,2744.3,4.00844]
[1729468289179,3.2078,2744.4,2744.3,4.00844]
[1729468289363,3.2078,2744.4,2744.3,0.36444]
[1729468289568,1.1487,2744.7,2744.4,0.36442]
[1729468289569,4.3565,2744.7,2744.4,0.36442]
[1729468289872,4.3565,2744.7,2744.5,0.36441]
[1729468289873,0.4161,2744.6,2744.5,0.36441]
[1729468290263,0.4161,2744.6,2744.2,0.4017]
[1729468290264,0.4161,2744.6,2744.4,0.36442]
[1729468290866,0.4161,2744.6,2744.5,0.36441]
[1729468291371,0.4161,2744.6,2744.2,0.4017]
[1729468291767,0.4161,2744.6,2744.5,0.36441]
[1729468295579,3.9921,2744.7,2744.6,0.3644]
[1729468295875,3.2078,2744.7,2744.6,0.3644]
[1729468297676,1.58166,2745.0,2744.9,0.36436]
[1729468297677,4.4251,2745.0,2744.9,0.36436]
[1729468297872,6.84,2745.9,2744.7,0.4042]
[1729468297873,3.2078,2745.3,2744.7,0.4042]
[1729468298080,3.2078,2745.3,2745.2,0.36432]
[1729468299370,3.2078,2745.3,2744.8,0.4162]
[1729468299878,0.3902,2745.2,2745.1,0.36434]
[1729468301682,3.2078,2745.3,2745.2,0.36432]
[1729468306488,3.2078,2745.3,2744.7,0.4042]
[1729468306788,3.2078,2745.3,2745.1,0.36433]
[1729468307306,3.2078,2745.3,2744.7,0.4042]
[1729468307804,3.2078,2745.3,2745.1,0.36433]
[1729468310798,3.2078,2745.3,2745.2,0.36432]
[1729468311000,3.2078,2745.3,2745.1,0.36433]
[1729468311598,0.36432,2745.2,2745.0,0.36434]
[1729468311804,0.3923,2745.1,2745.0,0.36434]
[1729468313405,0.3923,2745.1,2744.7,0.4042]
[1729468313704,3.2078,2745.0,2744.7,0.4042]
[1729468313896,3.5998,2745.0,2744.9,0.36435]
[1729468315704,0.36436,2744.9,2744.7,0.76858]
[1729468316006,0.4028,2744.9,2744.8,0.36437]
[1729468318502,0.4028,2744.9,2744.7,0.4042]
[1729468318712,0.4028,2744.9,2744.3,0.3927]
[1729468318899,3.2078,2744.7,2744.5,0.36441]
[1729468319103,0.4108,2744.6,2744.5,0.36441]
[1729468319305,0.8284,2744.6,2744.5,0.36441]
[1729468322619,0.8284,2744.6,2744.4,0.3967]
[1729468322809,1.19281,2744.6,2744.4,0.76113]
[1729468323311,0.8284,2744.6,2744.5,0.36441]
[1729468323915,0.8284,2744.6,2744.4,0.3967]
[1729468324113,1.19281,2744.6,2744.4,0.76113]
[1729468324508,0.8284,2744.6,2744.4,0.3967]
[1729468324712,0.8284,2744.6,2744.5,0.36441]
[1729468327112,3.2078,2744.8,2744.4,0.3967]
[1729468327414,0.36437,2744.8,2744.6,0.36439]
[1729468327615,0.7813,2744.7,2744.6,0.36439]
[1729468334515,0.3864,2744.7,2744.6,0.36439]
[1729468335911,2.38395654,2745.1,2744.6,3.6432]
[1729468336117,3.57213,2745.2,2745.0,0.36435]
[1729468336318,3.57213,2745.2,2745.1,0.3939]
[1729468337412,3.57213,2745.2,2744.5,1.35260093]
[1729468337413,0.36436,2744.9,2744.5,1.35260093]
[1729468337618,1.56548,2744.8,2744.6,0.53226462]
[1729468337824,1.56548,2744.8,2744.6,0.4183]
[1729468338413,1.56548,2744.8,2744.6,0.7827]
[1729468338816,1.2011,2744.8,2744.6,0.4183]
[1729468339113,1.2011,2744.8,2744.7,0.36439]
[1729468340223,0.36439,2744.7,2744.6,0.4183]
[1729468340427,1.2011,2744.8,2744.1,1.36450093]
[1729468340610,3.2078,2744.5,2744.2,0.62277179]
[1729468340811,3.2078,2744.5,2744.1,0.4097]
[1729468340812,0.36444,2744.3,2744.1,0.36446]
[1729468341015,1.16284,2744.4,2744.1,0.36447]
[1729468341215,0.3888,2744.3,2744.1,0.36447]
[1729468341513,0.3888,2744.3,2744.2,0.36445]
[1729468341916,0.4034,2744.4,2744.3,0.36444]
[1729468342315,0.7984,2744.4,2744.3,0.36444]
[1729468342512,1.1911,2744.4,2744.3,0.36444]
[1729468342717,1.65475027,2745.4,2744.3,0.36444]
[1729468342718,5.59175654,2744.8,2744.3,3.75798219]
[1729468342921,3.2078,2744.8,2744.7,0.36439]
[1729468346322,3.2078,2744.8,2744.4,0.3948]
[1729468346323,3.57218,2744.8,2744.4,0.3948]
[1729468346625,3.57218,2744.8,2744.6,0.3644]
[1729468347220,3.2078,2744.8,2744.7,0.36439]
[1729468348927,3.57505654,2745.0,2744.5,0.4065]
[1729468349231,3.93940654,2745.0,2744.8,0.36437]
[1729468349531,3.2078,2744.9,2744.8,0.36437]
[1729468350324,3.2078,2744.9,2744.7,0.36438]
[1729468350524,3.2078,2744.9,2744.5,0.4065]
[1729468350525,5.95612654,2744.9,2744.6,0.36439]
[1729468350917,5.95612654,2744.9,2744.1,0.95480093]
[1729468350918,0.36441,2744.6,2744.1,0.95480093]
[1729468351130,1.60632,2744.5,2744.2,0.59240626]
[1729468351327,1.60632,2744.5,2744.3,0.11398313]
[1729468351629,1.60632,2744.5,2744.2,0.36444]
[1729468351827,1.60632,2744.5,2744.2,0.36445]
[1729468352232,1.60632,2744.5,2744.3,0.11398912]
[1729468352526,1.60632,2744.5,2744.3,0.36444]
[1729468354729,1.2419,2744.5,2744.3,0.36444]
[1729468354923,0.36445,2744.3,2744.1,0.4107]
[1729468355138,0.36445,2744.3,2744.2,0.11398934]
[1729468355139,3.57225,2744.3,2744.2,0.11398934]
[1729468355533,0.36443,2744.4,2744.2,0.47843934]